{"text_format":"3","workbook":"xlsx","n_sheets":4,"sheets":["Start","Onkosten","Inkomsten","Overzicht Winst- en verliesrek."],"not_rendered":{"charts":1},"read":"whole","date_system":"1900"}

{"sheet":"Start","index":0,"n_rows":8,"n_cols":2,"rows_kept":8}
[null,"OVER DEZE SJABLOON"]
[null,"Gebruik deze werkmap om de onkosten en inkomsten van een evenement bij te houden."]
[null,"Voer de naam van het evenement in en voer alle gegevens in op de werkbladen Onkosten en Inkomsten."]
[null,"De totale onkosten en totale inkomsten worden automatisch berekend."]
[null,"De Overzicht Winst- en verliesrek en de bijbehorende grafiek worden automatisch bijgewerkt op het werkblad Overzicht Winst- en verliesrek."]
[null,"Opmerking: "]
[null,"Kolom A van elk werkblad bevat aanvullende instructies. Deze tekst is opzettelijk verborgen. Als u tekst wilt verwijderen, selecteert u kolom A en drukt u op Delete. Als u de tekst zichtbaar wilt maken, selecteert u kolom A en wijzigt u de tekenkleur."]
[null,"Als u meer wilt weten over tabellen, drukt u in een tabel op Shift en F10 en selecteert u de optie Tabel en vervolgens Alternatieve tekst."]

{"sheet":"Onkosten","index":1,"n_rows":32,"n_cols":8,"rows_kept":32,"merged":[[0,1,0,4],[2,1,3,1]]}
["Voer de geschat en werkelijk onkosten voor elke categorie in in de desbetreffende tabellen op dit werkblad. Voer in cel D1 de naam van het evenement in om de titels van alle werkbladen aan te passen. De subtitel van dit werkblad staat in cel H1. Cellen in deze kolom bevatten handige instructies voor het gebruik van dit werkblad. De volgende aanwijzing staat in cel A3.","Budget voor mijn evenement",{"$nulls":5},"ONKOSTEN"]
[]
["Het label Totale onkosten staat in de cel rechts, het label Geschat in cel G3 en het label Werkelijk in cel H3.","TOTALE ONKOSTEN",{"$nulls":4},"Geschat","Werkelijk"]
["De totale geschatte onkosten in cel G4 en de totale werkelijke onkosten in cel H4 worden automatisch berekend. De volgende aanwijzing staat in cel A6.",{"$nulls":5},{"$f":"SUM(C11,C19,C25,C32,G11,G19,G24)","v":{"v":882,"d":"€ 882.00"}},{"$f":"SUM(D11,D19,D25,D32,H11,H19,H24)","v":{"v":333,"d":"€ 333.00"}}]
[]
["Voer de onkosten voor de locatie in in de tabel die in de cel rechts begint, en de onkosten voor hapjes en drankjes in de tabel die in cel F6 begint. De volgende aanwijzing staat in cel A13.","Locatie","Geschat","Werkelijk",null,"Hapjes en drankjes","Geschat","Werkelijk"]
[null,"Kamer- en zaalkosten",{"v":500,"d":"€ 500.00"},null,null,"Eten en drinken"]
[null,"Personeel op locatie",{"$nulls":3},"Drinken",{"v":20,"d":"€ 20.00"}]
[null,"Apparatuur",{"$nulls":3},"Linnengoed",null,{"v":20,"d":"€ 20.00"}]
[null,"Tafels en stoelen",{"$nulls":3},"Personeel en fooien"]
[null,"Totaal",{"$f":"SUBTOTAL(109,OnkostenVoorDeLocatie[Geschat])","v":{"v":500,"d":"€ 500.00"}},{"$f":"SUBTOTAL(109,OnkostenVoorDeLocatie[Werkelijk])","v":{"v":0,"d":"€ 0.00"}},null,"Totaal",{"$f":"SUBTOTAL(109,OnkostenVoorHapjesEnDrankjes[Geschat])","v":{"v":20,"d":"€ 20.00"}},{"$f":"SUBTOTAL(109,OnkostenVoorHapjesEnDrankjes[Werkelijk])","v":{"v":20,"d":"€ 20.00"}}]
[]
["Voer de onkosten voor versieringen in in de tabel die in de cel rechts begint, en de onkosten voor het programma in de tabel die in cel F13 begint. De volgende aanwijzing staat in cel A21.","Versieringen","Geschat","Werkelijk",null,"Programma","Geschat","Werkelijk"]
[null,"Bloemen",{"v":200,"d":"€ 200.00"},{"v":300,"d":"€ 300.00"},null,"Artiesten"]
[null,"Kaarsen",{"$nulls":3},"Sprekers",{"v":30,"d":"€ 30.00"}]
[null,"Verlichting",{"$nulls":3},"Reis"]
[null,"Ballonnen",{"$nulls":3},"Hotel"]
[null,"Papier",{"$nulls":3},"Anders"]
[null,"Totaal",{"$f":"SUBTOTAL(109,OnkostenVoorVersieringen[Geschat])","v":{"v":200,"d":"€ 200.00"}},{"$f":"SUBTOTAL(109,OnkostenVoorVersieringen[Werkelijk])","v":{"v":300,"d":"€ 300.00"}},null,"Totaal",{"$f":"SUBTOTAL(109,OnkostenVoorHetProgramma[Geschat])","v":{"v":30,"d":"€ 30.00"}},{"$f":"SUBTOTAL(109,OnkostenVoorHetProgramma[Werkelijk])","v":{"v":0,"d":"€ 0.00"}}]
[]
["Voer de onkosten voor publiciteit in in de tabel die in de cel rechts begint, en de onkosten voor prijzen in de tabel die in cel F21 begint. De volgende aanwijzing staat in cel A27.","Publiciteit","Geschat","Werkelijk",null,"Prijzen","Geschat","Werkelijk"]
[null,"Grafisch ontwerp",{"$nulls":3},"Lintjes/medailles/trofeeën"]
[null,"Kopiëren/drukken",{"v":20,"d":"€ 20.00"},null,null,"Cadeaus",{"v":100,"d":"€ 100.00"}]
[null,"Portokosten",{"$nulls":3},"Totaal",{"$f":"SUBTOTAL(109,OnkostenVoorPrijzen[Geschat])","v":{"v":100,"d":"€ 100.00"}},{"$f":"SUBTOTAL(109,OnkostenVoorPrijzen[Werkelijk])","v":{"v":0,"d":"€ 0.00"}}]
[null,"Totaal",{"$f":"SUBTOTAL(109,OnkostenVoorPubliciteit[Geschat])","v":{"v":20,"d":"€ 20.00"}},{"$f":"SUBTOTAL(109,OnkostenVoorPubliciteit[Werkelijk])","v":{"v":0,"d":"€ 0.00"}}]
[]
["Voer overige onkosten in in de tabel die in de cel rechts begint.","Diversen","Geschat","Werkelijk"]
[null,"Telefoon",null,{"v":13,"d":"€ 13.00"}]
[null,"Vervoer",{"v":12,"d":"€ 12.00"}]
[null,"Kantoorbenodigdheden"]
[null,"Faxkosten"]
[null,"Totaal",{"$f":"SUBTOTAL(109,OverigeOnkosten[Geschat])","v":{"v":12,"d":"€ 12.00"}},{"$f":"SUBTOTAL(109,OverigeOnkosten[Werkelijk])","v":{"v":13,"d":"€ 13.00"}}]

{"sheet":"Inkomsten","index":2,"n_rows":29,"n_cols":7,"rows_kept":29,"merged":[[0,1,0,3],[2,1,3,1]]}
["Voer geschat en werkelijk inkomsten in voor elke categorie in de desbetreffende tabellen in dit werkblad. De titel van dit werkblad wordt automatisch bijgewerkt in de cellen rechts. De subtitel staat in cel G1. Cellen in deze kolom bevatten handige instructies voor het gebruik van dit werkblad. De volgende aanwijzing staat in cel A3.",{"$f":"Onkosten!B1","v":"Budget voor mijn evenement"},{"$nulls":4},"INKOMSTEN"]
[]
["Het label Totale inkomsten staat in de cel rechts, het label Geschat in cel F3 en het label Werkelijk in cel G3.","TOTALE INKOMSTEN",{"$nulls":3},"Geschat","Werkelijk"]
["De totale geschatte inkomsten worden automatisch berekend in cel F4, en de totale werkelijke inkomsten in cel G4.",{"$nulls":4},{"$f":"SUM(Toegangsbewijzen[[#Totals],[Geschatte inkomsten]],AdvertentiesInProgrammaboekje[[#Totals],[Geschatte inkomsten]],ExposantenEnVerkopers[[#Totals],[Geschatte inkomsten]],VerkoopVanArtikelen[[#Totals],[Geschatte inkomsten]])","v":{"v":1936,"d":"€ 1,936.00"}},{"$f":"SUM(Toegangsbewijzen[[#Totals],[Werkelijke inkomsten]],AdvertentiesInProgrammaboekje[[#Totals],[Werkelijke inkomsten]],ExposantenEnVerkopers[[#Totals],[Werkelijke inkomsten]],VerkoopVanArtikelen[[#Totals],[Werkelijke inkomsten]])","v":{"v":1831,"d":"€ 1,831.00"}}]
["Het label Toegangsbewijzen staat in de cel rechts.","TOEGANGSBEWIJZEN"]
["Voer het geschatte en werkelijke aantal verkochte toegangsbewijzen en de bijbehorende prijzen in in de tabel die in de cel rechts begint. De geschatte en werkelijke inkomsten uit verkochte toegangsbewijzen worden automatisch berekend. De volgende aanwijzing staat in cel A11.","Geschat aantal","Werkelijk aantal","Type","Prijs","Geschatte inkomsten","Werkelijke inkomsten"]
[null,300,278,"Volwassenen à",{"v":5,"d":"€ 5.00"},{"$f":"B7*E7","v":{"v":1500,"d":"€ 1,500.00"}},{"$f":"C7*E7","v":{"v":1390,"d":"€ 1,390.00"}}]
[null,197,195,"Kinderen à",{"v":2,"d":"€ 2.00"},{"$f":"B8*E8","v":{"v":394,"d":"€ 394.00"}},{"$f":"C8*E8","v":{"v":390,"d":"€ 390.00"}}]
[null,42,51,"Andere à",{"v":1,"d":"€ 1.00"},{"$f":"B9*E9","v":{"v":42,"d":"€ 42.00"}},{"$f":"C9*E9","v":{"v":51,"d":"€ 51.00"}}]
[null,"Totaal",{"$nulls":3},{"$f":"SUBTOTAL(109,Toegangsbewijzen[Geschatte inkomsten])","v":{"v":1936,"d":"€ 1,936.00"}},{"$f":"SUBTOTAL(109,Toegangsbewijzen[Werkelijke inkomsten])","v":{"v":1831,"d":"€ 1,831.00"}}]
["Het label Advertenties in programmaboekje staat in de cel rechts.","ADVERTENTIES IN PROGRAMMABOEKJE"]
["Voer het geschatte en werkelijke aantal verkochte advertenties in het programmaboekje en de bijbehorende advertentietarieven in in de tabel die in de cel rechts begint. De geschatte en werkelijke inkomsten uit advertenties worden automatisch berekend. De volgende aanwijzing staat in cel A17.","Geschat aantal","Werkelijk aantal","Type","Prijs","Geschatte inkomsten","Werkelijke inkomsten"]
[null,12,null,"Volledige pagina à",null,{"$f":"B13*E13","v":{"v":0,"d":"€ 0.00"}},{"$f":"C13*E13","v":{"v":0,"d":"€ 0.00"}}]
[null,null,158,"Halve pagina à",null,{"$f":"B14*E14","v":{"v":0,"d":"€ 0.00"}},{"$f":"C14*E14","v":{"v":0,"d":"€ 0.00"}}]
[null,4,null,"Kwart pagina à",null,{"$f":"B15*E15","v":{"v":0,"d":"€ 0.00"}},{"$f":"C15*E15","v":{"v":0,"d":"€ 0.00"}}]
[null,"Totaal",{"$nulls":3},{"$f":"SUBTOTAL(109,AdvertentiesInProgrammaboekje[Geschatte inkomsten])","v":{"v":0,"d":"€ 0.00"}},{"$f":"SUBTOTAL(109,AdvertentiesInProgrammaboekje[Werkelijke inkomsten])","v":{"v":0,"d":"€ 0.00"}}]
["Het label Exposanten en verkopers staat in de cel rechts.","EXPOSANTEN/VERKOPERS"]
["Voer het geschatte en werkelijke aantal exposanten en verkopers en de bijbehorende standprijzen in in de tabel die in de cel rechts begint. De geschatte en werkelijke inkomsten worden automatisch berekend. De volgende aanwijzing staat in cel A23.","Geschat aantal","Werkelijk aantal","Type","Prijs","Geschatte inkomsten","Werkelijke inkomsten"]
[null,23,null,"Grote stands à",null,{"$f":"B19*E19","v":{"v":0,"d":"€ 0.00"}},{"$f":"C19*E19","v":{"v":0,"d":"€ 0.00"}}]
[null,354,null,"Middelgrote stands à",null,{"$f":"B20*E20","v":{"v":0,"d":"€ 0.00"}},{"$f":"C20*E20","v":{"v":0,"d":"€ 0.00"}}]
[null,56,null,"Kleine stands à",null,{"$f":"B21*E21","v":{"v":0,"d":"€ 0.00"}},{"$f":"C21*E21","v":{"v":0,"d":"€ 0.00"}}]
[null,"Totaal",{"$nulls":3},{"$f":"SUBTOTAL(109,ExposantenEnVerkopers[Geschatte inkomsten])","v":{"v":0,"d":"€ 0.00"}},{"$f":"SUBTOTAL(109,ExposantenEnVerkopers[Werkelijke inkomsten])","v":{"v":0,"d":"€ 0.00"}}]
["Het label Verkoop van artikelen staat in de cel rechts.","VERKOOP VAN ARTIKELEN"]
["Voer het geschatte en werkelijke aantal verkochte artikelen en de bijbehorende artikelprijzen in in de tabel die in de cel rechts begint. De geschatte en werkelijke inkomsten worden automatisch berekend.","Geschat aantal","Werkelijk aantal","Type","Prijs","Geschatte inkomsten","Werkelijke inkomsten"]
[{"$nulls":3},"Items à",null,{"$f":"B25*E25","v":{"v":0,"d":"€ 0.00"}},{"$f":"C25*E25","v":{"v":0,"d":"€ 0.00"}}]
[null,123,null,"Items à",null,{"$f":"B26*E26","v":{"v":0,"d":"€ 0.00"}},{"$f":"C26*E26","v":{"v":0,"d":"€ 0.00"}}]
[{"$nulls":3},"Items à",null,{"$f":"B27*E27","v":{"v":0,"d":"€ 0.00"}},{"$f":"C27*E27","v":{"v":0,"d":"€ 0.00"}}]
[null,13,null,"Items à",null,{"$f":"B28*E28","v":{"v":0,"d":"€ 0.00"}},{"$f":"C28*E28","v":{"v":0,"d":"€ 0.00"}}]
[null,"Totaal",{"$nulls":3},{"$f":"SUBTOTAL(109,VerkoopVanArtikelen[Geschatte inkomsten])","v":{"v":0,"d":"€ 0.00"}},{"$f":"SUBTOTAL(109,VerkoopVanArtikelen[Werkelijke inkomsten])","v":{"v":0,"d":"€ 0.00"}}]

{"sheet":"Overzicht Winst- en verliesrek.","index":3,"n_rows":8,"n_cols":7,"rows_kept":8,"merged":[[0,1,0,3],[2,4,11,6]]}
["De winst-en-verliesrekening en de bijbehorende grafiek waarin de totale uitgaven onkosten worden weergegeven, worden automatisch bijgewerkt op dit werkblad. De titel van dit werkblad wordt automatisch bijgewerkt in de cellen rechts. De subtitel staat in cel G1 en G2. Cellen in deze kolom bevatten handige instructies voor het gebruik van dit werkblad. De volgende aanwijzing staat in cel A3.",{"$f":"Onkosten!B1","v":"Budget voor mijn evenement"},{"$nulls":4},"WINST "]
[{"$nulls":6},"Verliesrekening"]
["In cel E3 bevindt zich een staafdiagram waarin de geschatte inkomsten en onkosten en de werkelijke inkomsten en onkosten naast elkaar worden weergegeven.",{"$nulls":3},"In deze cel bevindt zich een staafdiagram met de geschatte inkomsten en onkosten en een vergelijking van werkelijke inkomsten en onkosten."]
["De tabel Overzicht die in de cel rechts begint, wordt automatisch bijgewerkt. De volgende aanwijzing staat in cel A8."," Totaal","Geschat","Werkelijk"]
[null,"Totale inkomsten",{"$f":"Inkomsten!F4","v":{"v":1936,"d":"€ 1,936.00"}},{"$f":"Inkomsten!G4","v":{"v":1831,"d":"€ 1,831.00"}}]
[null,"Totale onkosten",{"$f":"Onkosten!G4","v":{"v":882,"d":"€ 882.00"}},{"$f":"Onkosten!H4","v":{"v":333,"d":"€ 333.00"}}]
[]
["De geschatte totale winst of het geschatte totale verlies wordt automatisch berekend in cel C8, en de werkelijke totale winst of het werkelijke totale verlies in cel D8.","Totale winst     (of verlies)",{"$f":"C5-C6","v":{"v":1054,"d":"€ 1,054.00"}},{"$f":"D5-D6","v":{"v":1498,"d":"€ 1,498.00"}}]